[Event "*** Titled Tuesday Blitz"]
[Site "Chess.com"]
[Date "2018.05.01"]
[Round "1"]
[White "Turkey-Champion"]
[Black "Indianlad"]
[Result "0-1"]
[WhiteElo "2300"]
[BlackElo "2633"]
[TimeControl "180+2"]
[EndTime "13:06:51 PDT"]
[Termination "Indianlad won by resignation"]

1. e4 {[%clk 0:03:01.9]} 1... e5 {[%clk 0:02:59.3]} 2. Nf3 {[%clk 0:03:02.4]}
2... Nc6 {[%clk 0:03:00.5]} 3. Bc4 {[%clk 0:03:03.9]} 3... Bc5 {[%clk 0:03:01]}
4. c3 {[%clk 0:03:03.8]} 4... Nf6 {[%clk 0:03:02]} 5. d3 {[%clk 0:03:05.2]} 5...
O-O {[%clk 0:03:02.3]} 6. O-O {[%clk 0:03:05.8]} 6... d5 {[%clk 0:03:03.2]} 7.
exd5 {[%clk 0:03:05.8]} 7... Nxd5 {[%clk 0:03:05.1]} 8. b4 {[%clk 0:03:07.7]}
8... Be7 {[%clk 0:03:02.6]} 9. b5 {[%clk 0:03:07.5]} 9... Na5 {[%clk 0:03:00.7]}
10. Nxe5 {[%clk 0:03:08.2]} 10... Bf6 {[%clk 0:02:48.3]} 11. f4 {[%clk
0:03:00.9]} 11... Nxc4 {[%clk 0:02:21.8]} 12. dxc4 {[%clk 0:03:00.9]} 12... Nb6
{[%clk 0:02:23]} 13. Qxd8 {[%clk 0:03:01.3]} 13... Rxd8 {[%clk 0:02:23.4]} 14.
c5 {[%clk 0:03:02.7]} 14... Na4 {[%clk 0:02:22.7]} 15. Be3 {[%clk 0:02:58.2]}
15... Bf5 {[%clk 0:02:10.7]} 16. Bd4 {[%clk 0:02:51.8]} 16... Be7 {[%clk
0:02:05.7]} 17. c6 {[%clk 0:02:44.9]} 17... b6 {[%clk 0:02:06.9]} 18. Nd2 {[%clk
0:02:45.2]} 18... f6 {[%clk 0:01:57.3]} 19. Nef3 {[%clk 0:02:33.2]} 19... Rd5
{[%clk 0:01:52.7]} 20. Rfe1 {[%clk 0:02:26.6]} 20... Ba3 {[%clk 0:01:48.8]} 21.
Nc4 {[%clk 0:02:21.4]} 21... Bf8 {[%clk 0:01:46.2]} 22. Ne3 {[%clk 0:02:20.4]}
22... Rxb5 {[%clk 0:01:47.5]} 23. c4 {[%clk 0:02:13.6]} 23... Ra5 {[%clk
0:01:47.8]} 24. Nd5 {[%clk 0:02:03]} 24... Kf7 {[%clk 0:01:38.4]} 25. Nxc7
{[%clk 0:02:02.6]} 25... Rc8 {[%clk 0:01:38.6]} 26. Nb5 {[%clk 0:01:35.7]} 26...
Rxc6 {[%clk 0:01:38]} 27. Rac1 {[%clk 0:01:37.6]} 27... Bb4 {[%clk 0:01:37.2]}
28. Red1 {[%clk 0:01:34.3]} 28... a6 {[%clk 0:01:35.5]} 29. Na7 {[%clk
0:01:32.3]} 29... Rc7 {[%clk 0:01:34.3]} 30. c5 {[%clk 0:01:22.9]} 30... Bxc5
{[%clk 0:01:25.7]} 31. Bxc5 {[%clk 0:01:20.8]} 31... Raxc5 {[%clk 0:01:24.5]}
32. Rxc5 {[%clk 0:01:21.5]} 32... bxc5 {[%clk 0:01:26.4]} 33. Rc1 {[%clk
0:01:15.1]} 33... Rxa7 {[%clk 0:01:26.4]} 34. Rc4 {[%clk 0:01:16.9]} 34... Bd7
{[%clk 0:01:27.6]} 35. Nd2 {[%clk 0:01:16.8]} 35... Bb5 {[%clk 0:01:28.2]} 36.
Rc3 {[%clk 0:01:18.2]} 36... Ke6 {[%clk 0:01:24.2]} 37. Ne4 {[%clk 0:01:18.3]}
37... Nxc3 {[%clk 0:01:24.6]} 38. Nxc3 {[%clk 0:01:18]} 38... Rd7 {[%clk
0:01:24.7]} 39. Ne4 {[%clk 0:01:18]} 39... Kd5 {[%clk 0:01:25.7]} 40. Nc3+
{[%clk 0:01:18.8]} 40... Kd4 {[%clk 0:01:26.7]} 41. Ne4 {[%clk 0:01:20.7]} 0-1

[Event "*** Titled Tuesday Blitz"]
[Site "Chess.com"]
[Date "2018.05.01"]
[Round "1"]
[White "Kimster98"]
[Black "ChessicallyInclined"]
[Result "1-0"]
[WhiteElo "2515"]
[BlackElo "2186"]
[TimeControl "180+2"]
[EndTime "13:07:10 PDT"]
[Termination "Kimster98 won by resignation"]

1. e4 {[%clk 0:03:01.2]} 1... e5 {[%clk 0:02:58.8]} 2. Nf3 {[%clk 0:03:02.5]}
2... Nc6 {[%clk 0:02:54.7]} 3. d4 {[%clk 0:03:03.3]} 3... exd4 {[%clk
0:02:55.3]} 4. Nxd4 {[%clk 0:03:05.2]} 4... Nf6 {[%clk 0:02:54.6]} 5. Nxc6
{[%clk 0:03:05.3]} 5... bxc6 {[%clk 0:02:56.5]} 6. Qe2 {[%clk 0:03:06.6]} 6...
d5 {[%clk 0:02:38.3]} 7. exd5+ {[%clk 0:03:06.2]} 7... Be7 {[%clk 0:02:39.2]} 8.
dxc6 {[%clk 0:03:07.8]} 8... O-O {[%clk 0:02:40.4]} 9. Qd3 {[%clk 0:03:09.1]}
9... Re8 {[%clk 0:01:48.6]} 10. Qxd8 {[%clk 0:02:27.4]} 10... Bb4+ {[%clk
0:01:48.3]} 11. Kd1 {[%clk 0:02:26.3]} 11... Bg4+ {[%clk 0:01:46.8]} 12. f3
{[%clk 0:02:24.9]} 12... Raxd8+ {[%clk 0:01:46.3]} 13. Bd3 {[%clk 0:02:26.1]}
13... Bf5 {[%clk 0:00:54]} 14. Bd2 {[%clk 0:02:20.9]} 14... Bxd2 {[%clk
0:00:37.8]} 15. Kxd2 {[%clk 0:02:09.8]} 15... Bxd3 {[%clk 0:00:38.5]} 16. cxd3
{[%clk 0:02:10]} 16... Nd5 {[%clk 0:00:40]} 17. Nc3 {[%clk 0:02:01.3]} 17... Nb4
{[%clk 0:00:31]} 18. Rae1 {[%clk 0:02:01.2]} 18... Rxe1 {[%clk 0:00:25.4]} 19.
Rxe1 {[%clk 0:02:00.8]} 19... Nxd3 {[%clk 0:00:25.3]} 20. Re7 {[%clk 0:02:01.5]}
20... Nf4+ {[%clk 0:00:12.4]} 21. Rd7 {[%clk 0:01:54.1]} 21... Rxd7+ {[%clk
0:00:11.4]} 22. cxd7 {[%clk 0:01:55.4]} 22... Ne6 {[%clk 0:00:12.9]} 23. Nb5
{[%clk 0:01:53.2]} 23... Kf8 {[%clk 0:00:09.5]} 24. Nxc7 {[%clk 0:01:50.8]}
24... Nd8 {[%clk 0:00:10.1]} 25. Nd5 {[%clk 0:01:52.1]} 25... a6 {[%clk
0:00:10.5]} 26. Kd3 {[%clk 0:01:50.4]} 26... f6 {[%clk 0:00:10.6]} 27. f4 {[%clk
0:01:49.8]} 27... Kf7 {[%clk 0:00:12.1]} 28. f5 {[%clk 0:01:51.1]} 28... g6
{[%clk 0:00:12.2]} 29. g4 {[%clk 0:01:51.5]} 29... h5 {[%clk 0:00:13.2]} 30. h3
{[%clk 0:01:52.1]} 30... hxg4 {[%clk 0:00:14.2]} 31. hxg4 {[%clk 0:01:54]} 31...
gxf5 {[%clk 0:00:15.7]} 32. gxf5 {[%clk 0:01:55.1]} 32... Nc6 {[%clk 0:00:16.7]}
33. Kc3 {[%clk 0:01:53.5]} 33... Kf8 {[%clk 0:00:11.5]} 34. b4 {[%clk
0:01:53.6]} 34... Kf7 {[%clk 0:00:12.2]} 35. a4 {[%clk 0:01:54.2]} 35... Kf8
{[%clk 0:00:13.3]} 36. b5 {[%clk 0:01:55.5]} 36... axb5 {[%clk 0:00:13.9]} 37.
axb5 {[%clk 0:01:57.4]} 37... Nd8 {[%clk 0:00:15.4]} 38. Kc4 {[%clk 0:01:58]}
38... Nb7 {[%clk 0:00:15.5]} 39. b6 {[%clk 0:01:58.4]} 39... Kf7 {[%clk
0:00:16.3]} 40. Kb5 {[%clk 0:01:57.2]} 40... Nd8 {[%clk 0:00:16.6]} 41. Ka6
{[%clk 0:01:54]} 41... Nc6 {[%clk 0:00:17.5]} 42. Kb7 {[%clk 0:01:51.6]} 42...
Nd8+ {[%clk 0:00:17.3]} 43. Kc7 {[%clk 0:01:51.3]} 1-0

[Event "*** Titled Tuesday Blitz"]
[Site "Chess.com"]
[Date "2018.05.01"]
[Round "1"]
[White "FLchessplayer"]
[Black "LisikValera"]
[Result "1-0"]
[WhiteElo "2026"]
[BlackElo "2425"]
[TimeControl "180+2"]
[EndTime "13:07:13 PDT"]
[Termination "FLchessplayer won by resignation"]

1. d4 {[%clk 0:03:00.5]} 1... d5 {[%clk 0:03:00.2]} 2. Nf3 {[%clk 0:03:01.3]}
2... Nf6 {[%clk 0:03:00.2]} 3. e3 {[%clk 0:03:01]} 3... c6 {[%clk 0:03:00.6]} 4.
c4 {[%clk 0:03:00.4]} 4... Bg4 {[%clk 0:03:01]} 5. Nc3 {[%clk 0:03:00.5]} 5...
e6 {[%clk 0:03:02]} 6. Be2 {[%clk 0:02:59.2]} 6... Nbd7 {[%clk 0:03:01.1]} 7.
Qb3 {[%clk 0:02:58.9]} 7... Qb6 {[%clk 0:03:01.2]} 8. c5 {[%clk 0:02:59.9]} 8...
Qxb3 {[%clk 0:03:01.8]} 9. axb3 {[%clk 0:02:59.9]} 9... a6 {[%clk 0:03:03.1]}
10. b4 {[%clk 0:03:00.8]} 10... Rc8 {[%clk 0:03:03.7]} 11. Nd2 {[%clk
0:02:56.1]} 11... Bxe2 {[%clk 0:02:59.8]} 12. Kxe2 {[%clk 0:02:57.2]} 12... Be7
{[%clk 0:03:00.3]} 13. f3 {[%clk 0:02:54]} 13... e5 {[%clk 0:02:56.7]} 14. Kd3
{[%clk 0:02:51.5]} 14... exd4 {[%clk 0:02:51.1]} 15. exd4 {[%clk 0:02:51.3]}
15... O-O {[%clk 0:02:51.8]} 16. Re1 {[%clk 0:02:51.7]} 16... Bd8 {[%clk
0:02:41.8]} 17. Nb3 {[%clk 0:02:51.5]} 17... Bc7 {[%clk 0:02:40.8]} 18. g3
{[%clk 0:02:49.3]} 18... Rfe8 {[%clk 0:02:40.7]} 19. Bg5 {[%clk 0:02:50]} 19...
Rxe1 {[%clk 0:02:39.3]} 20. Rxe1 {[%clk 0:02:49.4]} 20... Re8 {[%clk 0:02:41.2]}
21. Rxe8+ {[%clk 0:02:49]} 21... Nxe8 {[%clk 0:02:43.1]} 22. Ke3 {[%clk
0:02:42.9]} 22... f6 {[%clk 0:02:36.2]} 23. Bf4 {[%clk 0:02:43.6]} 23... Bd8
{[%clk 0:02:35.6]} 24. g4 {[%clk 0:02:41.3]} 24... Kf7 {[%clk 0:02:34.3]} 25.
Kd3 {[%clk 0:02:35.4]} 25... g6 {[%clk 0:02:34.7]} 26. Bg3 {[%clk 0:02:33.9]}
26... Ng7 {[%clk 0:02:35.3]} 27. Ne2 {[%clk 0:02:30.3]} 27... Ne6 {[%clk
0:02:35.4]} 28. Nf4 {[%clk 0:02:23.9]} 28... Nxf4+ {[%clk 0:02:35.7]} 29. Bxf4
{[%clk 0:02:23.8]} 29... Nf8 {[%clk 0:02:37.5]} 30. Bg3 {[%clk 0:02:07.3]} 30...
Ne6 {[%clk 0:02:38]} 31. Nc1 {[%clk 0:02:04.3]} 31... g5 {[%clk 0:02:35.3]} 32.
Ke3 {[%clk 0:01:59.1]} 32... Kg6 {[%clk 0:02:35.2]} 33. Nd3 {[%clk 0:01:59.5]}
33... Be7 {[%clk 0:02:29.7]} 34. f4 {[%clk 0:01:53.1]} 34... gxf4+ {[%clk
0:02:27.5]} 35. Nxf4+ {[%clk 0:01:53]} 35... Nxf4 {[%clk 0:02:28.3]} 36. Bxf4
{[%clk 0:01:53.7]} 36... f5 {[%clk 0:02:24.4]} 37. h3 {[%clk 0:01:54.2]} 37...
fxg4 {[%clk 0:02:22.8]} 38. hxg4 {[%clk 0:01:54.5]} 38... Bh4 {[%clk 0:02:22.9]}
39. Ke2 {[%clk 0:01:42.8]} 39... Kf6 {[%clk 0:02:20.8]} 40. Bd2 {[%clk
0:01:38.6]} 40... Kg6 {[%clk 0:02:14.2]} 41. Kf3 {[%clk 0:01:36.2]} 41... h5
{[%clk 0:01:59.4]} 42. Bc3 {[%clk 0:01:21.9]} 42... Bg5 {[%clk 0:01:55.7]} 43.
Be1 {[%clk 0:01:08.3]} 43... Bc1 {[%clk 0:01:54.2]} 44. Bc3 {[%clk 0:01:06.3]}
44... h4 {[%clk 0:01:20.5]} 45. b3 {[%clk 0:01:01.4]} 45... Kg5 {[%clk
0:01:19.4]} 46. Be1 {[%clk 0:00:59.2]} 46... Bf4 {[%clk 0:01:19.9]} 47. Bxh4+
{[%clk 0:00:58.4]} 1-0

[Event "*** Titled Tuesday Blitz"]
[Site "Chess.com"]
[Date "2018.05.01"]
[Round "1"]
[White "BjarkeSahl"]
[Black "Storne89"]
[Result "0-1"]
[WhiteElo "2225"]
[BlackElo "2530"]
[TimeControl "180+2"]
[EndTime "13:07:15 PDT"]
[Termination "Storne89 won by resignation"]

1. e4 {[%clk 0:03:01.6]} 1... e5 {[%clk 0:02:59.6]} 2. Nf3 {[%clk 0:03:01.1]}
2... Nc6 {[%clk 0:03:00.7]} 3. d4 {[%clk 0:02:56.5]} 3... exd4 {[%clk
0:03:00.6]} 4. Bc4 {[%clk 0:02:58]} 4... Nf6 {[%clk 0:03:01.3]} 5. e5 {[%clk
0:02:59.2]} 5... Ng4 {[%clk 0:03:01.1]} 6. Bxf7+ {[%clk 0:02:53.8]} 6... Kxf7
{[%clk 0:02:59.9]} 7. Ng5+ {[%clk 0:02:55.3]} 7... Kg8 {[%clk 0:02:48.8]} 8. Qf3
{[%clk 0:02:55.3]} 8... Bb4+ {[%clk 0:01:37.4]} 9. c3 {[%clk 0:02:24.8]} 9...
Qe7 {[%clk 0:01:38.3]} 10. cxb4 {[%clk 0:02:16.9]} 10... Ngxe5 {[%clk
0:01:37.4]} 11. Qb3+ {[%clk 0:01:57.7]} 11... Kf8 {[%clk 0:01:37.1]} 12. O-O
{[%clk 0:01:54.4]} 12... h6 {[%clk 0:01:27.5]} 13. f4 {[%clk 0:01:50.3]} 13...
Nf7 {[%clk 0:01:20.7]} 14. Nxf7 {[%clk 0:01:14.4]} 14... Qxf7 {[%clk 0:01:21.9]}
15. Qxf7+ {[%clk 0:01:15.4]} 15... Kxf7 {[%clk 0:01:22.9]} 16. a3 {[%clk
0:01:11.2]} 16... d6 {[%clk 0:01:21.5]} 17. Nd2 {[%clk 0:01:12.6]} 17... Bf5
{[%clk 0:01:21.7]} 18. Nf3 {[%clk 0:01:12.8]} 18... a6 {[%clk 0:01:17]} 19. Bd2
{[%clk 0:01:13.4]} 19... Rhe8 {[%clk 0:01:17.1]} 20. Rac1 {[%clk 0:01:14.2]}
20... Be4 {[%clk 0:01:12.3]} 21. Nh4 {[%clk 0:01:06.2]} 21... Bd5 {[%clk
0:01:01.9]} 22. Rf2 {[%clk 0:01:04.4]} 22... g6 {[%clk 0:00:53.2]} 23. f5 {[%clk
0:00:53.4]} 23... g5 {[%clk 0:00:54.1]} 24. Ng6 {[%clk 0:00:54.5]} 24... Re4
{[%clk 0:00:51.4]} 25. h4 {[%clk 0:00:54.4]} 25... gxh4 {[%clk 0:00:48.2]} 26.
Bxh6 {[%clk 0:00:53.8]} 26... Rg4 {[%clk 0:00:40.8]} 27. Nf4 {[%clk 0:00:53.7]}
27... Be4 {[%clk 0:00:41.5]} 28. Re1 {[%clk 0:00:48.7]} 28... d5 {[%clk
0:00:42.8]} 29. Ne2 {[%clk 0:00:41.3]} 29... Rag8 {[%clk 0:00:40.9]} 30. Nf4
{[%clk 0:00:31.7]} 30... Rh8 {[%clk 0:00:41.8]} 0-1

[Event "*** Titled Tuesday Blitz"]
[Site "Chess.com"]
[Date "2018.05.01"]
[Round "1"]
[White "r31415"]
[Black "Alzhur"]
[Result "1-0"]
[WhiteElo "2193"]
[BlackElo "2491"]
[TimeControl "180+2"]
[EndTime "13:07:19 PDT"]
[Termination "r31415 won by checkmate"]

1. e4 {[%clk 0:03:01.7]} 1... c5 {[%clk 0:02:59.6]} 2. Nf3 {[%clk 0:03:02.3]}
2... e6 {[%clk 0:02:59.9]} 3. d4 {[%clk 0:03:04.2]} 3... cxd4 {[%clk 0:02:55.8]}
4. Nxd4 {[%clk 0:03:06.1]} 4... a6 {[%clk 0:02:56.1]} 5. c4 {[%clk 0:03:06.2]}
5... Nf6 {[%clk 0:02:55.2]} 6. Nc3 {[%clk 0:03:07.2]} 6... Bb4 {[%clk
0:02:55.1]} 7. Qd3 {[%clk 0:03:07.1]} 7... Nc6 {[%clk 0:02:52.8]} 8. Nc2 {[%clk
0:03:06.9]} 8... Be7 {[%clk 0:02:46.2]} 9. Be2 {[%clk 0:02:45.9]} 9... Qc7
{[%clk 0:02:44.9]} 10. O-O {[%clk 0:02:36.9]} 10... O-O {[%clk 0:02:27.1]} 11.
f4 {[%clk 0:02:36.1]} 11... d6 {[%clk 0:02:27.3]} 12. Be3 {[%clk 0:02:37.4]}
12... b6 {[%clk 0:02:27]} 13. Rac1 {[%clk 0:02:14.7]} 13... Bb7 {[%clk
0:02:28.2]} 14. Bf3 {[%clk 0:02:15.2]} 14... Rac8 {[%clk 0:02:27.3]} 15. Rfd1
{[%clk 0:02:06.6]} 15... Nd7 {[%clk 0:02:26.8]} 16. b4 {[%clk 0:02:04.1]} 16...
Qb8 {[%clk 0:02:25.7]} 17. Na4 {[%clk 0:01:59.1]} 17... Ba8 {[%clk 0:02:16.6]}
18. e5 {[%clk 0:01:46]} 18... b5 {[%clk 0:02:07.3]} 19. cxb5 {[%clk 0:01:45.7]}
19... axb5 {[%clk 0:02:07]} 20. exd6 {[%clk 0:01:43.4]} 20... Bf6 {[%clk
0:02:06.8]} 21. Nc5 {[%clk 0:01:38.8]} 21... Rfd8 {[%clk 0:02:05.9]} 22. Nxd7
{[%clk 0:01:18.9]} 22... Rxd7 {[%clk 0:02:05.3]} 23. Bc5 {[%clk 0:01:20.8]}
23... Na5 {[%clk 0:01:57.8]} 24. Ne3 {[%clk 0:01:17.4]} 24... Bxf3 {[%clk
0:01:45.2]} 25. gxf3 {[%clk 0:01:19.3]} 25... Qb7 {[%clk 0:01:41.6]} 26. bxa5
{[%clk 0:01:11.7]} 26... Qxf3 {[%clk 0:01:40.5]} 27. Ng2 {[%clk 0:01:00.7]}
27... Qb7 {[%clk 0:01:30.1]} 28. Bb6 {[%clk 0:00:58.6]} 28... g6 {[%clk
0:01:24]} 29. Ne3 {[%clk 0:00:33.6]} 29... Kg7 {[%clk 0:01:15.9]} 30. Ng4 {[%clk
0:00:29.3]} 30... Bb2 {[%clk 0:00:53.9]} 31. Bd4+ {[%clk 0:00:29.2]} 31... Bxd4+
{[%clk 0:00:51.8]} 32. Qxd4+ {[%clk 0:00:31.1]} 32... Kg8 {[%clk 0:00:50.9]} 33.
Nh6+ {[%clk 0:00:32]} 33... Kf8 {[%clk 0:00:51.2]} 34. Qh8# {[%clk 0:00:32.4]}
1-0

[Event "*** Titled Tuesday Blitz"]
[Site "Chess.com"]
[Date "2018.05.01"]
[Round "1"]
[White "AnishGiri"]
[Black "josiwales"]
[Result "1-0"]
[WhiteElo "2831"]
[BlackElo "2403"]
[TimeControl "180+2"]
[EndTime "13:07:26 PDT"]
[Termination "AnishGiri won by resignation"]

1. e4 {[%clk 0:02:58.9]} 1... c5 {[%clk 0:02:59.3]} 2. Nf3 {[%clk 0:02:59.5]}
2... Nc6 {[%clk 0:03:00.7]} 3. Bb5 {[%clk 0:02:59.6]} 3... g6 {[%clk 0:03:01.3]}
4. Bxc6 {[%clk 0:03:00.3]} 4... bxc6 {[%clk 0:02:54.6]} 5. d4 {[%clk 0:03:01.6]}
5... cxd4 {[%clk 0:02:52]} 6. Qxd4 {[%clk 0:03:02]} 6... Nf6 {[%clk 0:02:48.8]}
7. e5 {[%clk 0:02:58.9]} 7... Nd5 {[%clk 0:02:48.5]} 8. O-O {[%clk 0:02:53]}
8... Bg7 {[%clk 0:02:48.9]} 9. c4 {[%clk 0:02:41.4]} 9... Nc7 {[%clk 0:02:44.3]}
10. Qh4 {[%clk 0:02:42.1]} 10... Ne6 {[%clk 0:02:39.5]} 11. Bd2 {[%clk
0:02:41.7]} 11... Rb8 {[%clk 0:02:18.7]} 12. Bc3 {[%clk 0:02:42.3]} 12... O-O
{[%clk 0:02:11.9]} 13. Nbd2 {[%clk 0:02:41]} 13... d5 {[%clk 0:02:06]} 14. exd6
{[%clk 0:02:35.3]} 14... exd6 {[%clk 0:02:06.4]} 15. Qxd8 {[%clk 0:02:18.9]}
15... Rxd8 {[%clk 0:02:06]} 16. Bxg7 {[%clk 0:02:20]} 16... Kxg7 {[%clk
0:02:06.3]} 17. b3 {[%clk 0:02:20.4]} 17... d5 {[%clk 0:01:58.1]} 18. cxd5
{[%clk 0:02:11.1]} 18... cxd5 {[%clk 0:01:52.4]} 19. Ne5 {[%clk 0:02:06.3]}
19... Nd4 {[%clk 0:01:32.7]} 20. Ndf3 {[%clk 0:02:02.3]} 20... Ne2+ {[%clk
0:01:18.5]} 21. Kh1 {[%clk 0:02:02.4]} 21... Rb6 {[%clk 0:01:19.4]} 22. Rfe1
{[%clk 0:01:59.6]} 22... Nf4 {[%clk 0:01:15.9]} 23. Nd4 {[%clk 0:01:59.5]} 23...
Bf5 {[%clk 0:01:11.7]} 24. Rac1 {[%clk 0:01:54.6]} 24... Ra6 {[%clk 0:01:04.7]}
25. a4 {[%clk 0:01:46.2]} 25... Be6 {[%clk 0:00:41.6]} 26. g3 {[%clk 0:01:38.7]}
26... Nh3 {[%clk 0:00:40.5]} 27. Kg2 {[%clk 0:01:38.3]} 27... Ng5 {[%clk
0:00:41.6]} 28. f3 {[%clk 0:01:34.9]} 28... f6 {[%clk 0:00:27.6]} 29. Rc7+
{[%clk 0:01:31.5]} 29... Kg8 {[%clk 0:00:18.7]} 30. Nec6 {[%clk 0:01:29.1]}
30... Rd6 {[%clk 0:00:17.7]} 31. h4 {[%clk 0:01:25.2]} 31... Bh3+ {[%clk
0:00:11.5]} 32. Kh2 {[%clk 0:01:13.6]} 32... Bd7 {[%clk 0:00:11.9]} 33. Ne7+
{[%clk 0:01:01]} 33... Kf7 {[%clk 0:00:12.8]} 34. hxg5 {[%clk 0:01:02.1]} 34...
Rab6 {[%clk 0:00:12]} 35. Nc8 {[%clk 0:01:02.8]} 1-0

[Event "*** Titled Tuesday Blitz"]
[Site "Chess.com"]
[Date "2018.05.01"]
[Round "1"]
[White "dhanushbharadwaj"]
[Black "LuisFSiles"]
[Result "1-0"]
[WhiteElo "2529"]
[BlackElo "2223"]
[TimeControl "180+2"]
[EndTime "13:07:26 PDT"]
[Termination "dhanushbharadwaj won by resignation"]

1. Nf3 {[%clk 0:03:01.9]} 1... Nf6 {[%clk 0:02:59.9]} 2. c4 {[%clk 0:03:02.7]}
2... g6 {[%clk 0:02:56.9]} 3. b4 {[%clk 0:03:03]} 3... Bg7 {[%clk 0:02:57.4]} 4.
Bb2 {[%clk 0:03:04.2]} 4... O-O {[%clk 0:02:58.3]} 5. e3 {[%clk 0:03:04.3]} 5...
d6 {[%clk 0:02:58.7]} 6. Be2 {[%clk 0:03:02.8]} 6... e5 {[%clk 0:02:52.9]} 7. d3
{[%clk 0:03:02.1]} 7... a5 {[%clk 0:02:41.4]} 8. a3 {[%clk 0:03:01.1]} 8... axb4
{[%clk 0:02:41.1]} 9. axb4 {[%clk 0:03:03]} 9... Rxa1 {[%clk 0:02:41.8]} 10.
Bxa1 {[%clk 0:03:04.4]} 10... Nc6 {[%clk 0:02:39.2]} 11. b5 {[%clk 0:03:05.3]}
11... Ne7 {[%clk 0:02:39.4]} 12. Nbd2 {[%clk 0:03:06.4]} 12... Bf5 {[%clk
0:02:35.2]} 13. O-O {[%clk 0:02:56.8]} 13... Nd7 {[%clk 0:02:06.4]} 14. e4
{[%clk 0:02:53.8]} 14... Bg4 {[%clk 0:02:01.3]} 15. h3 {[%clk 0:02:53.5]} 15...
Bxf3 {[%clk 0:02:01.8]} 16. Nxf3 {[%clk 0:02:54.3]} 16... Nc5 {[%clk 0:02:01.4]}
17. Qc2 {[%clk 0:02:44.1]} 17... Ne6 {[%clk 0:02:00.9]} 18. Rd1 {[%clk
0:02:41.4]} 18... c5 {[%clk 0:01:59.4]} 19. Bc3 {[%clk 0:02:39.3]} 19... Nf4
{[%clk 0:01:43.8]} 20. Bf1 {[%clk 0:02:37]} 20... Qd7 {[%clk 0:01:45.1]} 21. Ra1
{[%clk 0:02:33.9]} 21... h6 {[%clk 0:01:43.2]} 22. Ra7 {[%clk 0:01:59.7]} 22...
f5 {[%clk 0:01:39.8]} 23. exf5 {[%clk 0:01:52.8]} 23... Nxf5 {[%clk 0:01:08.5]}
24. g3 {[%clk 0:01:41.8]} 24... Ne6 {[%clk 0:00:57.8]} 25. Bg2 {[%clk
0:01:41.2]} 25... e4 {[%clk 0:00:40.8]} 26. dxe4 {[%clk 0:01:31.7]} 26... Nfd4
{[%clk 0:00:34.3]} 27. Bxd4 {[%clk 0:01:20.1]} 27... Nxd4 {[%clk 0:00:34.8]} 28.
Qd3 {[%clk 0:01:13]} 28... Nxf3+ {[%clk 0:00:31.4]} 29. Bxf3 {[%clk 0:01:14.9]}
29... Bd4 {[%clk 0:00:31.1]} 30. Kg2 {[%clk 0:01:14]} 30... Qf7 {[%clk
0:00:25.5]} 31. e5 {[%clk 0:01:11.4]} 31... Kh8 {[%clk 0:00:21.5]} 32. Rxb7
{[%clk 0:01:10.3]} 32... Qe6 {[%clk 0:00:19.5]} 33. exd6 {[%clk 0:01:06.5]}
33... Qxd6 {[%clk 0:00:19.9]} 34. Ra7 {[%clk 0:01:03.2]} 34... Qb6 {[%clk
0:00:20.3]} 35. Ra6 {[%clk 0:01:03.7]} 35... Qb8 {[%clk 0:00:20.2]} 36. Rxg6
{[%clk 0:01:02.4]} 1-0

[Event "*** Titled Tuesday Blitz"]
[Site "Chess.com"]
[Date "2018.05.01"]
[Round "1"]
[White "Siemba"]
[Black "belisarius64"]
[Result "0-1"]
[WhiteElo "2053"]
[BlackElo "2467"]
[TimeControl "180+2"]
[EndTime "13:07:27 PDT"]
[Termination "belisarius64 won by resignation"]

1. e4 {[%clk 0:03:01.2]} 1... c5 {[%clk 0:03:00.2]} 2. Nf3 {[%clk 0:03:01.3]}
2... e6 {[%clk 0:03:01.5]} 3. d4 {[%clk 0:03:01.6]} 3... cxd4 {[%clk 0:03:03.4]}
4. Nxd4 {[%clk 0:03:03.5]} 4... a6 {[%clk 0:03:05]} 5. Bd3 {[%clk 0:03:03.5]}
5... Bc5 {[%clk 0:03:04.9]} 6. Nb3 {[%clk 0:03:04]} 6... Ba7 {[%clk 0:03:06.1]}
7. Qg4 {[%clk 0:03:05.6]} 7... Nf6 {[%clk 0:03:05.9]} 8. Qh4 {[%clk 0:02:55.7]}
8... Nc6 {[%clk 0:03:05.9]} 9. Bg5 {[%clk 0:02:54.4]} 9... Ne5 {[%clk
0:02:58.6]} 10. Nc3 {[%clk 0:02:52.2]} 10... Ng6 {[%clk 0:02:52.7]} 11. Qg3
{[%clk 0:02:48.6]} 11... h6 {[%clk 0:02:52.7]} 12. Be3 {[%clk 0:02:43.4]} 12...
Bb8 {[%clk 0:02:50.2]} 13. Qf3 {[%clk 0:02:39.3]} 13... O-O {[%clk 0:02:50.9]}
14. O-O {[%clk 0:02:38.2]} 14... Qc7 {[%clk 0:02:45.9]} 15. g3 {[%clk
0:02:38.8]} 15... b5 {[%clk 0:02:46.5]} 16. a3 {[%clk 0:02:19.6]} 16... Bb7
{[%clk 0:02:46.3]} 17. Rfe1 {[%clk 0:02:16]} 17... Ne5 {[%clk 0:02:46.3]} 18.
Qe2 {[%clk 0:02:14.9]} 18... Nxd3 {[%clk 0:02:45.7]} 19. cxd3 {[%clk 0:02:16.8]}
19... d5 {[%clk 0:02:46.6]} 20. Rac1 {[%clk 0:02:07.5]} 20... Qd8 {[%clk
0:02:33.1]} 21. Nc5 {[%clk 0:01:51.7]} 21... Bc6 {[%clk 0:02:33]} 22. exd5
{[%clk 0:01:48.1]} 22... Nxd5 {[%clk 0:02:31.6]} 23. Qg4 {[%clk 0:01:33.6]}
23... Nxe3 {[%clk 0:02:30.7]} 24. Rxe3 {[%clk 0:01:24.8]} 24... Ba7 {[%clk
0:02:24.5]} 25. d4 {[%clk 0:01:24.2]} 25... Bxc5 {[%clk 0:02:00]} 26. dxc5
{[%clk 0:01:26.1]} 26... Qd2 {[%clk 0:01:59.9]} 27. Rb1 {[%clk 0:00:47.2]} 27...
Rad8 {[%clk 0:01:55]} 28. Qd1 {[%clk 0:00:47.2]} 28... a5 {[%clk 0:01:47.3]} 29.
Re2 {[%clk 0:00:38.5]} 29... Qxd1+ {[%clk 0:01:41.1]} 30. Rxd1 {[%clk
0:00:40.4]} 30... Rxd1+ {[%clk 0:01:42.1]} 31. Nxd1 {[%clk 0:00:39.5]} 31... Rd8
{[%clk 0:01:44]} 32. Ne3 {[%clk 0:00:34.6]} 32... b4 {[%clk 0:01:43]} 33. f4
{[%clk 0:00:27.6]} 33... Bb5 {[%clk 0:01:24.7]} 34. Rc2 {[%clk 0:00:21.4]} 34...
Rd3 {[%clk 0:01:25]} 35. Kf2 {[%clk 0:00:19.3]} 35... b3 {[%clk 0:01:24.4]} 36.
Rc3 {[%clk 0:00:18.4]} 36... Rxc3 {[%clk 0:01:24.3]} 0-1